fUSD/lending_fUSD_20251226
["ID","MTS","AMOUNT","RATE_DAILY","PERIOD"]
[399870350,1766784631357,-136.31089766,0.00012972,2]
[399870351,1766784631369,-30.34910234,0.00012972,2]
[399870352,1766784631379,-200.0,0.00013135,2]
[399870353,1766784631389,-170.69,0.00013156,2]
[399870354,1766784631401,-529.99789766,0.00013162,2]
[399870355,1766784631412,-48.79210234,0.00013162,2]
[399870356,1766784631422,-666.06684991,0.00013162,2]
[399870357,1766784631440,-35.41315009,0.00013162,2]
[399870358,1766784631451,-150.0,0.00013207,2]
[399870359,1766784631462,-166.66,0.0001324,2]
[399870360,1766784631474,-166.66,0.00013507,2]
[399870361,1766784631484,-151.0,0.0001363,2]
[399870362,1766784631494,-151.0,0.0001363,2]
[399870363,1766784631503,-180.0,0.00013632,2]
[399870364,1766784631514,-1194.0,0.00013632,2]
[399870365,1766784631524,-300.0,0.00013632,2]
[399870366,1766784631535,-1811.6178,0.00013633,2]
[399870367,1766784631545,-1374.30775021,0.00013633,2]
[399870372,1766784632067,-53280.61694979,0.00013633,2]
[399870373,1766784632077,-182.04400944,0.00013675,2]
[399870374,1766784632088,-631.46052872,0.00013675,2]
[399870375,1766784632098,-322.6107,0.00013724,2]
[399870376,1766784632108,-500.0,0.00013725,2]
[399870377,1766784632118,-574.12855637,0.00013725,2]
[399870378,1766784632127,-151.0,0.00013725,2]
[399870379,1766784632138,-500.0,0.00013725,2]
[399870380,1766784632149,-151.0,0.00013725,2]
[399870381,1766784632159,-500.0,0.00013725,2]
[399870382,1766784632170,-620.0,0.00013725,2]
[399870383,1766784632180,-500.0,0.00013725,2]
[399870384,1766784632189,-153.43746121,0.00013725,2]
[399870385,1766784632199,-500.0,0.00013725,2]
[399870386,1766784632208,-207.4,0.00013725,2]
[399870387,1766784632218,-500.0,0.00013725,2]
[399870388,1766784632228,-250.0,0.00013725,2]
[399870389,1766784632238,-250.0,0.00013725,2]
[399870390,1766784632248,-250.0,0.00013725,2]
[399870391,1766784632258,-151.0,0.00013725,2]
[399870392,1766784632268,-250.0,0.00013725,2]
[399870393,1766784632278,-151.0,0.00013725,2]
[399870394,1766784632288,-250.0,0.00013725,2]
[399870395,1766784632298,-151.0,0.00013725,2]
[399870396,1766784632309,-250.0,0.00013725,2]
[399870397,1766784632319,-200.0,0.00013725,2]
[399870398,1766784632329,-151.0,0.00013725,2]
[399870399,1766784632339,-627.57731337,0.00013725,2]
[399870400,1766784632348,-202.67282,0.00013725,2]
[399870401,1766784632358,-151.0,0.00013725,2]
[399870402,1766784632368,-151.0,0.00013725,2]
[399870403,1766784632378,-151.0,0.00013725,2]
[399870404,1766784632387,-151.0,0.00013725,2]
[399870405,1766784632400,-200.0,0.00013725,2]
[399870406,1766784632410,-151.0,0.00013725,2]
[399870407,1766784632419,-151.0,0.00013725,2]
[399870408,1766784632429,-151.0,0.00013725,2]
[399870409,1766784632439,-250.0,0.00013726,2]
[399870410,1766784632450,-227.593215,0.00013729,2]
[399870411,1766784632460,-1000.0,0.00013732,2]
[399870412,1766784632470,-152.1808673,0.00013732,2]
[399870413,1766784632479,-211.82590776,0.00013732,2]
[399870414,1766784632489,-500.0,0.00013732,2]
[399870415,1766784632499,-311.15078782,0.00013732,2]
[399870416,1766784632510,-500.0,0.00013732,2]
[399870417,1766784632520,-278.49743663,0.00013732,2]
[399870418,1766784632530,-500.0,0.00013732,2]
[399870419,1766784632540,-500.0,0.00013732,2]
[399870420,1766784632550,-500.0,0.00013732,2]
[399870421,1766784632559,-500.0,0.00013732,2]
[399870422,1766784632569,-500.0,0.00013732,2]
[399870423,1766784632579,-309.89697426,0.00013732,2]
[399870424,1766784632589,-500.0,0.00013732,2]
[399870425,1766784632599,-500.0,0.00013732,2]
[399870426,1766784632610,-500.0,0.00013732,2]
[399870427,1766784632619,-500.0,0.00013732,2]
[399870428,1766784632629,-500.0,0.00013732,2]
[399870429,1766784632640,-500.0,0.00013732,2]
[399870430,1766784632650,-500.0,0.00013732,2]
[399870431,1766784632660,-500.0,0.00013732,2]
[399870432,1766784632670,-550.13665148,0.00013732,2]
[399870433,1766784632679,-168.354,0.00013732,2]
[399870434,1766784632689,-1567.592,0.00013732,2]
[399870435,1766784632699,-1000000.0,0.00013733,2]
[399870436,1766784632708,-151.0,0.00013733,2]
[399870437,1766784632718,-151.0,0.00013733,2]
[399870438,1766784632728,-151.0,0.00013733,2]
[399870439,1766784632738,-787.694368,0.00013733,2]
[399870440,1766784632747,-787.694368,0.00013733,2]
[399870441,1766784632757,-787.694368,0.00013733,2]
[399870442,1766784632767,-787.694368,0.00013733,2]
[399870443,1766784632777,-151.0,0.00013733,2]
[399870444,1766784632787,-151.0,0.00013733,2]
[399870445,1766784632797,-300.0,0.0001375,2]
[399870446,1766784632806,-250.0,0.0001375,2]
[399870447,1766784632816,-1273.33613579,0.0001375,2]
[399870448,1766784632826,-166.66,0.00013775,2]
[399870449,1766784632836,-200.0,0.00013821,2]
[399870450,1766784632846,-200.0,0.00013822,2]
[399870451,1766784632856,-151.0,0.00013924,2]
[399870452,1766784632866,-151.0,0.00013924,2]
[399870453,1766784632876,-666.0,0.00013932,2]
[399870454,1766784632886,-500.55152277,0.00013932,2]
[399870455,1766784632895,-500.0,0.00013932,2]
[399870456,1766784632905,-500.0,0.00013932,2]
[399870457,1766784632914,-500.0,0.00013932,2]
[399870458,1766784632924,-500.0,0.00013932,2]
[399870459,1766784632934,-7340.4137239,0.00013933,2]
[399870460,1766784632944,-950.4549502,0.00013933,2]
[399870461,1766784632954,-151.0,0.00014033,2]
[399870462,1766784632964,-151.0,0.00014033,2]
[399870463,1766784632975,-151.0,0.00014033,2]
[399870464,1766784632984,-151.0,0.00014033,2]
[399870465,1766784632994,-151.0,0.00014033,2]
[399870466,1766784633003,-161.050782,0.00014033,2]
[399870467,1766784633013,-151.0,0.00014033,2]
[399870468,1766784633023,-570.21093,0.00014033,2]
[399870469,1766784633033,-570.21093,0.00014033,2]
[399870470,1766784633043,-532.353076,0.00014033,2]
[399870471,1766784633054,-570.21093,0.00014033,2]
[399870472,1766784633064,-532.353076,0.00014033,2]
[399870473,1766784633074,-570.21093,0.00014033,2]
[399870474,1766784633083,-532.353076,0.00014033,2]
[399870475,1766784633094,-532.353076,0.00014033,2]
[399870476,1766784633105,-151.0,0.00014033,2]
[399870477,1766784633114,-151.0,0.00014033,2]
[399870478,1766784633125,-151.0,0.00014033,2]
[399870479,1766784633135,-151.0,0.00014033,2]
[399870480,1766784633145,-458.065204,0.00014033,2]
[399870481,1766784633155,-458.065204,0.00014033,2]
[399870482,1766784633165,-458.065204,0.00014033,2]
[399870483,1766784633175,-458.065204,0.00014033,2]
[399870484,1766784633185,-151.0,0.00014033,2]
[399870485,1766784633195,-151.0,0.00014033,2]
[399870486,1766784633205,-233.37032883,0.00014033,2]
[399870487,1766784633215,-787.694368,0.00014033,2]
[399870488,1766784633225,-787.694368,0.00014033,2]
[399870489,1766784633236,-787.694368,0.00014033,2]
[399870490,1766784633245,-787.694368,0.00014033,2]
[399870491,1766784633255,-151.0,0.00014033,2]
[399870492,1766784633265,-286.594406,0.00014033,2]
[399870493,1766784633275,-166.66,0.00014042,2]
[399870494,1766784633285,-151.0,0.00014083,2]
[399870495,1766784633296,-151.0,0.00014083,2]
[399870496,1766784633305,-151.0,0.00014083,2]
[399870497,1766784633315,-151.0,0.00014083,2]
[399870498,1766784633327,-151.0,0.00014083,2]
[399870499,1766784633337,-151.0,0.00014083,2]
[399870500,1766784633347,-151.0,0.00014083,2]
[399870501,1766784633357,-151.0,0.00014083,2]
[399870502,1766784633367,-151.0,0.00014083,2]
[399870503,1766784633378,-151.0,0.00014083,2]
[399870504,1766784633389,-151.0,0.00014083,2]
[399870505,1766784633402,-322.16,0.00014083,2]
[399870506,1766784633412,-151.0,0.00014083,2]
[399870507,1766784633422,-151.0,0.00014083,2]
[399870508,1766784633433,-151.0,0.00014083,2]
[399870509,1766784633443,-194.794453,0.00014083,2]
[399870510,1766784633453,-151.0,0.00014083,2]
[399870511,1766784633463,-151.0,0.00014083,2]
[399870512,1766784633475,-151.0,0.00014083,2]
[399870513,1766784633485,-151.0,0.00014083,2]
[399870514,1766784633496,-151.0,0.00014083,2]
[399870515,1766784633506,-151.0,0.00014083,2]
[399870516,1766784633517,-151.0,0.00014083,2]
[399870517,1766784633526,-151.0,0.00014083,2]
[399870518,1766784633536,-187.850295,0.00014083,2]
[399870519,1766784633546,-570.21093,0.00014083,2]
[399870520,1766784633555,-570.21093,0.00014083,2]
[399870521,1766784633565,-532.353076,0.00014083,2]
[399870522,1766784633575,-570.21093,0.00014083,2]
[399870523,1766784633585,-532.353076,0.00014083,2]
[399870524,1766784633594,-570.21093,0.00014083,2]
[399870525,1766784633604,-532.353076,0.00014083,2]
[399870526,1766784633613,-532.353076,0.00014083,2]
[399870527,1766784633623,-151.0,0.00014083,2]
[399870528,1766784633633,-151.0,0.00014083,2]
[399870529,1766784633643,-151.0,0.00014083,2]
[399870530,1766784633653,-151.0,0.00014083,2]
[399870531,1766784633663,-458.065204,0.00014083,2]
[399870532,1766784633673,-458.065204,0.00014083,2]
[399870533,1766784633684,-458.065204,0.00014083,2]
[399870534,1766784633694,-458.065204,0.00014083,2]
[399870535,1766784633704,-151.0,0.00014083,2]
[399870536,1766784633714,-151.0,0.00014083,2]
[399870537,1766784633724,-787.694368,0.00014083,2]
[399870538,1766784633734,-787.694368,0.00014083,2]
[399870539,1766784633743,-787.694368,0.00014083,2]
[399870540,1766784633753,-787.694368,0.00014083,2]
[399870541,1766784633763,-151.0,0.00014083,2]
[399870542,1766784633772,-20350.04888996,0.00014083,2]
[399870543,1766784633782,-4008.0,0.00014101,2]
[399870544,1766784633792,-151.0,0.00014101,2]
[399870545,1766784633802,-151.0,0.00014101,2]
[399870546,1766784633812,-155.892352,0.00014101,2]
[399870547,1766784633821,-631.46052869,0.00014136,2]
[399870548,1766784633831,-5485.0,0.00014182,2]
[399870549,1766784633841,-458.065204,0.00014182,2]
[399870550,1766784633851,-458.065204,0.00014182,2]
[399870551,1766784633860,-458.065204,0.00014182,2]
[399870552,1766784633870,-458.065204,0.00014182,2]
[399870553,1766784633880,-151.0,0.00014209,2]
[399870554,1766784633890,-151.0,0.00014209,2]
[399870555,1766784633900,-151.0,0.00014209,2]
[399870556,1766784633910,-151.0,0.00014209,2]
[399870557,1766784633919,-151.0,0.00014209,2]
[399870558,1766784633929,-151.0,0.00014209,2]
[399870559,1766784633939,-165.290795,0.00014209,2]
[399870560,1766784633949,-151.0,0.00014209,2]
[399870561,1766784633958,-151.0,0.00014209,2]
[399870562,1766784633968,-151.0,0.00014209,2]
[399870563,1766784633977,-151.0,0.00014209,2]
[399870564,1766784633987,-151.0,0.00014209,2]
[399870565,1766784633996,-151.0,0.00014209,2]
[399870566,1766784634006,-151.0,0.00014209,2]
[399870567,1766784634017,-151.0,0.00014209,2]
[399870568,1766784634027,-151.0,0.00014209,2]
[399870569,1766784634037,-151.0,0.00014209,2]
[399870570,1766784634047,-151.0,0.00014209,2]
[399870571,1766784634056,-151.0,0.00014209,2]
[399870572,1766784634066,-570.21093,0.00014209,2]
[399870573,1766784634075,-570.21093,0.00014209,2]
[399870574,1766784634085,-532.353076,0.00014209,2]
[399870575,1766784634095,-570.21093,0.00014209,2]
[399870576,1766784634104,-532.353076,0.00014209,2]
[399870577,1766784634114,-570.21093,0.00014209,2]
[399870578,1766784634124,-532.353076,0.00014209,2]
[399870579,1766784634133,-532.353076,0.00014209,2]
[399870580,1766784634143,-151.0,0.00014209,2]
[399870581,1766784634153,-151.0,0.00014209,2]
[399870582,1766784634163,-151.0,0.00014209,2]
[399870583,1766784634172,-158.437752,0.00014209,2]
[399870584,1766784634182,-151.0,0.00014209,2]
[399870585,1766784634191,-151.0,0.00014209,2]
[399870586,1766784634201,-787.694368,0.00014209,2]
[399870587,1766784634211,-787.694368,0.00014209,2]
[399870588,1766784634220,-787.694368,0.00014209,2]
[399870589,1766784634232,-787.694368,0.00014209,2]
[399870590,1766784634242,-361.0,0.00014228,2]
[399870591,1766784634251,-201.65834875,0.00014234,2]
[399870592,1766784634261,-151.0,0.00014234,2]
[399870593,1766784634271,-2278.75979955,0.00014262,2]
[399870594,1766784634281,-151.0,0.00014262,2]
[399870595,1766784634291,-151.0,0.00014262,2]
[399870596,1766784634301,-151.0,0.00014262,2]
[399870597,1766784634311,-294.49445466,0.00014273,2]
[399870598,1766784634321,-151.0,0.00014273,2]
[399870599,1766784634330,-151.0,0.00014273,2]
[399870600,1766784634340,-151.0,0.00014273,2]
[399870601,1766784634349,-151.0,0.00014273,2]
[399870602,1766784634359,-151.0,0.00014273,2]
[399870603,1766784634369,-151.0,0.00014273,2]
[399870604,1766784634379,-151.0,0.00014273,2]
[399870605,1766784634389,-151.0,0.00014273,2]
[399870606,1766784634401,-283.686864,0.00014273,2]
[399870607,1766784634411,-151.0,0.00014273,2]
[399870608,1766784634421,-151.0,0.00014273,2]
[399870609,1766784634431,-151.0,0.00014273,2]
[399870610,1766784634440,-151.0,0.00014273,2]
[399870611,1766784634450,-458.065204,0.00014278,2]
[399870612,1766784634459,-458.065204,0.00014278,2]
[399870613,1766784634469,-458.065204,0.00014278,2]
[399870614,1766784634479,-458.065204,0.00014278,2]
[399870615,1766784634488,-361.0,0.00014289,2]
[399870616,1766784634498,-989.0,0.000143,2]
[399870617,1766784634508,-305.0,0.000143,2]
[399870618,1766784634518,-166.66,0.00014307,2]
[399870619,1766784634527,-322.16,0.00014357,2]
[399870620,1766784634537,-500.0,0.00014373,2]
[399870621,1766784634547,-177.95989573,0.00014378,2]
[399870622,1766784634556,-361.0,0.00014386,2]
[399870623,1766784634565,-3152.0,0.00014387,2]
[399870624,1766784634575,-151.0,0.00014388,2]
[399870625,1766784634584,-151.0,0.00014388,2]
[399870626,1766784634594,-151.0,0.00014388,2]
[399870627,1766784634604,-151.0,0.00014388,2]
[399870628,1766784634614,-298.772527,0.00014388,2]
[399870629,1766784634623,-151.0,0.00014388,2]
[399870630,1766784634633,-151.0,0.00014388,2]
[399870631,1766784634643,-151.0,0.00014388,2]
[399870632,1766784634652,-570.21093,0.00014388,2]
[399870633,1766784634662,-570.21093,0.00014388,2]
[399870634,1766784634671,-532.353076,0.00014388,2]
[399870635,1766784634681,-570.21093,0.00014388,2]
[399870636,1766784634691,-532.353076,0.00014388,2]
[399870637,1766784634700,-570.21093,0.00014388,2]
[399870638,1766784634710,-532.353076,0.00014388,2]
[399870639,1766784634719,-532.353076,0.00014388,2]
[399870640,1766784634729,-151.0,0.00014388,2]
[399870641,1766784634739,-151.0,0.00014388,2]
[399870642,1766784634748,-151.0,0.00014388,2]
[399870643,1766784634757,-151.0,0.00014388,2]
[399870644,1766784634767,-151.0,0.00014388,2]
[399870645,1766784634776,-787.694368,0.00014388,2]
[399870646,1766784634785,-787.694368,0.00014388,2]
[399870647,1766784634795,-787.694368,0.00014388,2]
[399870648,1766784634804,-787.69436,0.00014388,2]
[399870649,1766784635014,-151.0,0.00014388,2]
[399870650,1766784635025,-432.0,0.00014389,2]
[399870651,1766784635036,-1263.0,0.00014389,2]
[399870652,1766784635046,-1198.0,0.00014389,2]
[399870653,1766784635056,-912.0,0.00014389,2]
[399870654,1766784635065,-1327.0,0.00014389,2]
[399870655,1766784635075,-612.0,0.00014389,2]
[399870656,1766784635085,-458.065204,0.00014389,2]
[399870657,1766784635095,-458.065204,0.00014389,2]
[399870658,1766784635105,-458.065204,0.00014389,2]
[399870659,1766784635115,-458.06521,0.00014389,2]
[399870660,1766784635124,-151.0,0.00014392,2]
[399870661,1766784635134,-151.0,0.00014392,2]
[399870662,1766784635144,-151.0,0.00014392,2]
[399870663,1766784635153,-570.21093,0.00014392,2]
[399870664,1766784635164,-570.21093,0.00014392,2]
[399870665,1766784635174,-532.353076,0.00014392,2]
[399870666,1766784635184,-570.21093,0.00014392,2]
[399870667,1766784635194,-532.353076,0.00014392,2]
[399870668,1766784635204,-570.21092905,0.00014392,2]
[399870669,1766784635215,-532.353076,0.00014392,2]
[399870670,1766784635225,-532.353086,0.00014392,2]
[399870671,1766784635235,-151.0,0.00014392,2]
[399870672,1766784635245,-151.0,0.00014392,2]
[399870673,1766784635255,-151.0,0.00014392,2]
[399870674,1766784635265,-5485.0,0.00014399,2]
[399870675,1766784635275,-151.0,0.00014399,2]
[399870676,1766784635284,-151.0,0.00014399,2]
[399870677,1766784635294,-151.990979,0.00014399,2]
[399870678,1766784635304,-151.0,0.00014399,2]
[399870679,1766784635314,-151.0,0.00014399,2]
[399870680,1766784635324,-151.0,0.00014399,2]
[399870681,1766784635334,-151.0,0.00014399,2]
[399870682,1766784635343,-151.0,0.00014399,2]
[399870683,1766784635353,-151.0,0.00014399,2]
[399870684,1766784635363,-361.0,0.00014409,2]
[399870685,1766784635373,-361.0,0.00014411,2]
[399870686,1766784635382,-151.0,0.00014412,2]
[399870687,1766784635395,-151.0,0.00014412,2]
[399870688,1766784635406,-5485.0,0.00014412,2]
[399870689,1766784635416,-361.0,0.0001442,2]
[399870690,1766784635426,-361.0,0.00014425,2]
[399870691,1766784635436,-285.649133,0.00014439,2]
[399870692,1766784635446,-361.0,0.00014497,2]
[399870693,1766784635455,-361.0,0.00014523,2]
[399870694,1766784635465,-5485.0,0.00014545,2]
[399870695,1766784635475,-151.0,0.00014545,2]
[399870696,1766784635485,-151.0,0.00014545,2]
[399870697,1766784635495,-151.0,0.00014545,2]
[399870698,1766784635504,-151.0,0.00014567,2]
[399870699,1766784635513,-151.0,0.00014567,2]
[399870700,1766784635523,-277.688532,0.00014567,2]
[399870701,1766784635532,-151.0,0.00014567,2]
[399870702,1766784635542,-151.0,0.00014567,2]
[399870703,1766784635551,-361.0,0.00014593,2]
[399870704,1766784635561,-631.46052869,0.00014596,2]
[399870705,1766784635571,-30475.41939313,0.00014621,2]
[399870706,1766784635580,-322.17,0.00014631,2]
[399870707,1766784635590,-5485.0,0.00014636,2]
[399870708,1766784635600,-5888.0,0.00014645,2]
[399870709,1766784635610,-1000.0,0.0001465,2]
[399870710,1766784635620,-361.0,0.00014656,2]
[399870711,1766784635630,-1306.66524039,0.00014684,2]
[399870712,1766784635639,-264.0,0.00014695,2]
[399870713,1766784635648,-150.0,0.00014695,2]
[399870714,1766784635658,-150.0,0.00014695,2]
[399870715,1766784635667,-170.113,0.00014695,2]
[399870716,1766784635676,-150.121,0.00014695,2]
[399870717,1766784635686,-170.0,0.00014695,2]
[399870718,1766784635695,-150.0,0.00014695,2]
[399870719,1766784635704,-150.047,0.00014695,2]
[399870720,1766784635714,-150.0,0.00014695,2]
[399870721,1766784635723,-150.0,0.00014695,2]
[399870722,1766784635733,-150.099,0.00014695,2]
[399870723,1766784635742,-361.0,0.00014707,2]
[399870724,1766784635754,-1000.0,0.00014751,2]
[399870725,1766784635764,-5485.0,0.00014757,2]
[399870726,1766784635774,-361.0,0.00014763,2]
[399870727,1766784635783,-166.66,0.00014764,2]
[399870728,1766784635793,-1000.0,0.00014776,2]
[399870729,1766784635803,-701.48,0.00014808,2]
[399870730,1766784635812,-162.55799377,0.00014813,2]
[399870731,1766784635822,-1032.81842917,0.00014829,2]
[399870732,1766784635832,-1000.0,0.0001485,2]
[399870733,1766784635841,-150.0,0.00014861,2]
[399870734,1766784635850,-150.0,0.00014919,2]
[399870735,1766784635859,-1000.0,0.00014921,2]
[399870736,1766784635869,-234.51566129,0.00014984,2]
[399870737,1766784635878,-150.0,0.00014984,2]
[399870738,1766784635888,-271.62990831,0.00014984,2]
[399870739,1766784635898,-1319.24,0.00014986,2]
[399870740,1766784635907,-786.81984526,0.00015,2]
[399870741,1766784635916,-5485.0,0.00015002,2]
[399870742,1766784635926,-1000.0,0.00015035,2]
[399870743,1766784635936,-631.46052869,0.00015057,2]
[399870744,1766784635946,-900.0,0.00015068,2]
[399870745,1766784635955,-503.826575,0.00015068,2]
[399870746,1766784635965,-503.826575,0.00015068,2]
[399870747,1766784635975,-503.826575,0.00015068,2]
[399870748,1766784635984,-503.826575,0.00015068,2]
[399870749,1766784635994,-503.826575,0.00015068,2]
[399870750,1766784636003,-503.826575,0.00015068,2]
[399870751,1766784636013,-503.826575,0.00015068,2]
[399870752,1766784636022,-503.826575,0.00015068,2]
[399870753,1766784636032,-503.826575,0.00015068,2]
[399870754,1766784636041,-503.826575,0.00015068,2]
[399870755,1766784636051,-503.826575,0.00015068,2]
[399870756,1766784636060,-503.826575,0.00015068,2]
[399870757,1766784636070,-503.826575,0.00015068,2]
[399870758,1766784636079,-503.826575,0.00015068,2]
[399870759,1766784636089,-503.826575,0.00015068,2]
[399870760,1766784636099,-503.826575,0.00015068,2]
[399870761,1766784636108,-503.826575,0.00015068,2]
[399870762,1766784636118,-503.826575,0.00015068,2]
[399870763,1766784636128,-503.826575,0.00015068,2]
[399870764,1766784636138,-503.826573,0.00015068,2]
[399870765,1766784636148,-5485.0,0.00015083,2]
[399870766,1766784636158,-334.5472959,0.00015093,2]
[399870767,1766784636168,-166.66,0.00015221,2]
[399870768,1766784636178,-150.0,0.00015288,2]
[399870769,1766784636187,-150.0,0.00015288,2]
[399870770,1766784636196,-150.0,0.00015288,2]
[399870771,1766784636206,-150.0,0.00015288,2]
[399870772,1766784636216,-150.0,0.00015288,2]
[399870773,1766784636225,-150.0,0.00015288,2]
[399870774,1766784636236,-150.00000001,0.00015288,2]
[399870775,1766784636246,-150.0,0.00015288,2]
[399870776,1766784636257,-9999.99,0.0001531,2]
[399870777,1766784636266,-515.46,0.0001531,2]
[399870778,1766784636275,-999.99,0.0001531,2]
[399870779,1766784636286,-15940.71,0.0001531,2]
[399870780,1766784636296,-150.99,0.0001531,2]
[399870781,1766784636306,-3989.86,0.0001531,2]
[399870782,1766784636315,-9999.99,0.0001531,2]
[399870783,1766784636325,-9999.99,0.0001531,2]
[399870784,1766784636335,-5485.0,0.00015326,2]
[399870785,1766784636344,-209.98779963,0.00015412,2]
[399870786,1766784636353,-560.50610001,0.00015468,2]
[399870787,1766784636363,-5485.0,0.00015495,2]
[399870788,1766784636372,-631.46052869,0.00015518,2]
[399870789,1766784636382,-10000.0,0.00015546,2]
[399870790,1766784636392,-11954.377557,0.00015556,2]
[399870791,1766784636405,-150.0,0.00015627,2]
[399870792,1766784636416,-150.0,0.00015627,2]
[399870793,1766784636425,-150.0,0.00015627,2]
[399870794,1766784636434,-5485.0,0.00015646,2]
[399870795,1766784636444,-166.66,0.00015678,2]
[399870796,1766784636454,-1637.8676897,0.00015699,2]
[399870797,1766784636464,-2230.46737462,0.00015807,2]
[399870798,1766784636474,-500.0,0.00015829,2]
[399870799,1766784636485,-150.0,0.00015854,2]
[399870800,1766784636495,-150.0,0.00015854,2]
[399870801,1766784636504,-398.40831123,0.000159,2]
[399870802,1766784636515,-150.0,0.00015967,2]
[399870803,1766784636525,-150.0,0.00015967,2]
[399870804,1766784636534,-150.0,0.00015967,2]
[399870805,1766784636544,-500.32001049,0.00015973,2]
[399870806,1766784636554,-500.0,0.00015973,2]
[399870807,1766784636564,-631.46052869,0.00015979,2]
[399870808,1766784636574,-666.0,0.00015999,2]
[399870809,1766784636584,-153465.87991332,0.00016,4]
[399870810,1766784636594,-33134.64620355,0.00016,2]
[399870811,1766784636603,-106378.29142816,0.00016,4]
[399870812,1766784636612,-88420.21221341,0.00016,4]
[399870813,1766784636629,-1741.44480262,0.00016,4]
[399870814,1766784636640,-999.0,0.00016,4]
[399870815,1766784636651,-999.0,0.00016,4]
[399870816,1766784637451,-151.0,0.00014388,2]
[399870817,1766784637462,-247.17722841,0.00014388,2]
[399870818,1766784637476,-2356.56339535,0.00014389,2]
[399870819,1766784637488,-73.43660465,0.00014389,2]
[399870820,1766784637498,-330.47737862,0.00016,4]
[399870821,1766784637511,-446.48391257,0.00016,4]
[399870822,1766784637522,-1067.9992591,0.00016,4]
[399870823,1766784637534,-499.98,0.00016,4]
[399870824,1766784637546,-593.02810869,0.00016,4]
[399870825,1766784637558,-146170.8799,0.00016,4]
[399870826,1766784637571,-2971.26860673,0.00016,4]
[399870827,1766784637580,-622.51919545,0.00016,2]
[399870888,1766784639652,-1377.48080455,0.00016,2]
[399870889,1766784639662,-17667.63748949,0.00016,4]
[399870890,1766784639708,-77819.65008746,0.00016,4]
[399870891,1766784639718,-252.31669751,0.00016,2]
[399870892,1766784639727,-2161.337126,0.0001601,2]
[399870893,1766784639737,-365.4576799,0.00016093,2]
[399870894,1766784639746,-681.43055394,0.00016115,2]
[399870895,1766784639755,-4482.75,0.00016116,2]
[399870896,1766784639764,-166.66,0.00016135,2]
[399870897,1766784639773,-150.0,0.00016137,2]
[399870898,1766784639783,-3979.09459434,0.000162,5]
[399870899,1766784639819,-1020.90547257,0.000162,5]
[399870900,1766784639835,-150.0,0.00016307,2]
[399870901,1766784639845,-150.0,0.00016307,2]
[399870902,1766784639855,-150.0,0.00016307,2]
[399870903,1766784639865,-219.13853976,0.00016338,2]
[399870904,1766784639875,-398.40831122,0.000164,2]
[399870905,1766784639885,-150.0,0.0001642,2]
[399870906,1766784639895,-150.0,0.0001642,2]
[399870907,1766784639912,-500.0,0.00016438,2]
[399870908,1766784639933,-500.0,0.00016438,2]
[399870910,1766784639950,-500.0,0.00016438,2]
[399870912,1766784639960,-500.0,0.00016438,2]
[399870914,1766784639972,-500.0,0.00016438,2]
[399870916,1766784639985,-500.0,0.00016438,2]
[399870918,1766784639996,-500.0,0.00016438,2]